Cogmind - Beta 13 @@@ ROGUE MODE // 2024.04.12 @ 21:15:22 Player: chexo4 Result: Self-destructed Performance ------------- Evolutions (1) 500 Regions Visited (3) 600 Robots Destroyed (11) 55 Value Destroyed (107) 107 Prototype IDs (1) 20 Alien Tech Used (0) 0 Bonus (39) 39 TOTAL SCORE: 1321 Bonus ------- Follower Combat Kills 39 Cogmind --------- Core Integrity 400/400 Matter 206/300 Energy 265/265 System Corruption 0% Temperature Cool (0) Movement Rolling (95) Ox1 Location -9/Materials Parts ------- > --- POWER (1) -------- Improved Ion Engine > --- PROPULSION (4) --- Wheel Wheel Wheel > --- UTILITY (2) ------ High-capacity Storage Unit Seismic Detector > --- WEAPON (2) ------- EM Pulse Gun Light Assault Rifle > --- INVENTORY (20) --- Light Ion Engine Combat Airjet VTOL Module Experimental Sensor Array Improved Terrain Scanner Mining Laser Peak State ------------ > --- POWER ------------ Light Ion Engine > --- PROPULSION ------- Wheel Wheel Wheel Wheel > --- UTILITY ---------- Small Storage Unit Experimental Sensor Array > --- WEAPON ----------- EM Pulse Gun Light Assault Rifle > --- INVENTORY -------- Combat Airjet Improved Terrain Scanner Seismic Detector Mining Laser [Rating: 18] Favorites ----------- Power Light Ion Engine Engine Light Ion Engine Propulsion Wheel Wheel Wheel Hover Unit Combat Airjet Utility Small Storage Unit Device Seismic Detector Storage Small Storage Unit Weapon Light Assault Rifle Energy Gun EM Pulse Gun Ballistic Gun Light Assault Rifle Launcher Grenade Launcher Build | -11 -10 -10 -9 ------- Run | Yrd Mat Min Mat Slots Evolved 2 | . . . 2 Power . | . . . . Propulsion 2 | . . . 2 Utility . | . . . . Weapon . | . . . . Parts Attached 24 | 7 . 12 5 Power 3 | 1 . 1 1 Engine 3 | 1 . 1 1 Core . | . . . . Reactor . | . . . . Propulsion 9 | 2 . 5 2 Treads . | . . . . Leg . | . . . . Wheel 8 | 2 . 4 2 Hover 1 | . . 1 . Flight . | . . . . Utility 6 | 2 . 2 2 Device 4 | 1 . 2 1 Storage 2 | 1 . . 1 Processor . | . . . . Hackware . | . . . . Protection . | . . . . Artifact . | . . . . Weapon 6 | 2 . 4 . Energy Gun 1 | . . 1 . Energy Cannon . | . . . . Ballistic Gun 4 | 2 . 2 . Ballistic Cannon . | . . . . Launcher 1 | . . 1 . Special Weapon . | . . . . Impact Weapon . | . . . . Slashing Weapon . | . . . . Piercing Weapon . | . . . . Special Melee Weapon . | . . . . Unidentified Prototypes 1 | . . 1 . Parts Lost 7 | . . 6 1 Power 1 | . . 1 . Propulsion 3 | . . 2 1 Utility 1 | . . 1 . Weapon 2 | . . 2 . Highest Loss Streak 2 | . . 2 1 To Critical Strikes . | . . . . Average Slot Usage (%) 97 | . 100 97 91 Engine 13 | . 14 13 11 Wheel 28 | . 28 27 36 Device 13 | . 14 14 11 Storage 13 | . 14 14 11 Energy Gun 3 | . . 2 11 Ballistic Gun 23 | . 28 24 11 Naked Turns . | . . . . Heaviest Build 51 | 12 12 12 51 Greatest Support 40 | 26 26 26 40 Greatest Overweight (x) 1 | . . . 1 Average Overweight (x) . | . . . . Largest Inventory Capacity 20 | 8 8 8 20 Average Capacity 8 | 7 8 8 18 Most Carried 8 | 7 8 8 6 Average Carried 6 | 4 7 7 4 Final Capacity 20 | 8 8 8 20 Final Carried 8 | 7 8 6 6 Class Distribution -------------------- 81% | Mutant 18% | Scavenger-Mutant Dominant Class ---------------- Mutant | -10/Materials Mutant | -10/Mines Scavenger-Mutant | -9/Materials Resources | -11 -10 -10 -9 ----------- Run | Yrd Mat Min Mat Matter Collected 548 | 280 . 268 . Remotely . | . . . . Salvage Created 466 | 238 . 68 160 Parts 27 | 21 . . 6 Haulers Intercepted . | . . . . Recyclers Shooed 1 | . . . 1 Parts Field Recycled . | . . . . Retrieved Matter . | . . . . Parts Self-Destructed . | . . . . Prevented . | . . . . Kills | -11 -10 -10 -9 ------- Run | Yrd Mat Min Mat Combat Hostiles Destroyed 10 | . . 9 1 Guns 5 | . . 4 1 AOE 5 | . . 5 . Classes Destroyed 5 | 3 . 1 1 Worker 1 | 1 . . . Tunneler 7 | 7 . . . Recycler 2 | 1 . . 1 Sentry 1 | . . . 1 Assembled 9 | . . 9 . Best Kill Streak 6 | 4 . 6 2 Combat Bots Only 6 | . . 6 1 Max Kills in Single Turn 5 | 1 . 5 1 Gunslinging . | . . . . Exploded 4 | . . 4 . Melee . | . . . . Uniques/NPCs Destroyed . | . . . . Combat | -11 -10 -10 -9 -------- Run | Yrd Mat Min Mat Hostile Shots Fired 25 | . . 21 4 Missed 6 | . . 5 1 Damage Taken 582 | . . 533 49 Core 115 | . . 115 . Absorbed by Shields . | . . . . Core Remaining (%) 77 | 100 . 54 . Volleys Fired 58 | 32 . 20 6 Largest 2 | 2 . 2 2 Hottest 60 | 40 . 50 60 Shots Fired 110 | 64 . 34 12 Gun 107 | 64 . 31 12 Cannon . | . . . . Launcher 3 | . . 3 . Special . | . . . . Kinetic 100 | 64 . 30 6 Thermal . | . . . . Explosive 3 | . . 3 . Electromagnetic 7 | . . 1 6 Robot Hit Streak 5 | 5 . 4 5 Robot Miss Streak 7 | 2 . 7 1 Penetration Max . | . . . . Secondary Targets . | . . . . Shots Hit Robots 55 | 33 . 14 8 Core Hits 36 | 13 . 19 4 Critical Kills . | . . . . Critical Parts Destroyed . | . . . . Critical Strikes . | . . . . Melee Attacks . | . . . . Impact . | . . . . Slashing . | . . . . Piercing . | . . . . Sneak Attacks . | . . . . Combat Hostiles . | . . . . Follow-up Attacks . | . . . . Damage Inflicted 863 | 366 . 413 84 Guns 585 | 366 . 135 84 Cannons . | . . . . Explosions 278 | . . 278 . Melee . | . . . . Ramming . | . . . . Kinetic 525 | 366 . 123 36 Thermal . | . . . . Explosive 278 | . . 278 . Electromagnetic 60 | . . 12 48 Impact . | . . . . Slashing . | . . . . Piercing . | . . . . Highest Corruption 6 | . . 6 . Average Corruption 5 | . . 5 . Corruption Purged . | . . . . Corruption Blocked . | . . . . Effects 10 | . . 10 . Matter Fused 2 | . . 2 . Heat Flow Errors 2 | . . 2 . Energy Discharges 2 | . . 2 . Parts Rejected 1 | . . 1 . Data Loss (minor) 1 | . . 1 . Misfires 1 | . . 1 . Alerts 1 | . . 1 . Overload Shots . | . . . . Overflow Damage 15 | . . 15 . Projectiles . | . . . . Explosions 15 | . . 15 . Melee . | . . . . Knockbacks . | . . . . Impact . | . . . . Kinetic . | . . . . Secondary . | . . . . Self-Inflicted Damage 96 | . . 96 . Shots 3 | . . 3 . Rammed . | . . . . Targets Rammed . | . . . . Kicked . | . . . . Crushed . | . . . . Highest Temperature 266 | . . 266 32 Average Temperature 79 | . . 105 15 Received Heat Transfer 9 | . . . 9 Siege Activations . | . . . . Robots Corrupted . | . . . . Combat Hostiles . | . . . . Parts Fried . | . . . . Impact Corruptions . | . . . . Robots Melted . | . . . . Combat Hostiles . | . . . . Parts Melted . | . . . . Heat Transferred . | . . . . Parts Sabotaged . | . . . . Parts Stolen . | . . . . Parts Stripped . | . . . . Power Chain Reactions . | . . . . Alert | -11 -10 -10 -9 ------- Run | Yrd Mat Min Mat Peak Influence 56 | 45 56 32 47 Initial 29 | . 29 21 . Average 15 | 15 37 11 26 Maximum Alert Level . | . . . . Low Security (%) 100 | 100 100 100 100 Level 1 . | . . . . Level 2 . | . . . . Level 3 . | . . . . Level 4 . | . . . . Level 5 . | . . . . High Security . | . . . . Max Security . | . . . . Squads Dispatched 1 | . . . 1 Investigation 1 | . . . 1 Extermination . | . . . . Reinforcement . | . . . . Assault . | . . . . Garrison . | . . . . Intercept . | . . . . Searches Triggered . | . . . . Construction Impeded . | . . . . Haulers Reinforced . | . . . . Active Scanning Responses . | . . . . Cargo Convoy Interrupts . | . . . . Stealth | -11 -10 -10 -9 --------- Run | Yrd Mat Min Mat Distress Signals 1 | . . 1 . Communications Jammed . | . . . . Distress Signals . | . . . . Times Spotted 19 | . 1 17 1 Peak Tracking Total 9 | . 1 9 1 Tactical Retreats 3 | . . 3 . Traps | -11 -10 -10 -9 ------- Run | Yrd Mat Min Mat Traps Triggered . | . . . . Indirectly . | . . . . Trap Hack Attempts . | . . . . Triggered . | . . . . Disarmed . | . . . . Reprogrammed . | . . . . Reused . | . . . . Traps Extracted . | . . . . Installed . | . . . . Triggered . | . . . . Machines | -11 -10 -10 -9 ---------- Run | Yrd Mat Min Mat Machines Disabled . | . . . . Max in Single Turn . | . . . . Machines Repaired . | . . . . Machines Dismantled . | . . . . Machines Sabotaged . | . . . . Overloaded Fab Kills . | . . . . Hacking | -11 -10 -10 -9 --------- Run | Yrd Mat Min Mat Machines Accessed 3 | . 1 . 2 Terminals 3 | . 1 . 2 Fabricators . | . . . . Repair Stations . | . . . . Recycling Units . | . . . . Scanalyzers . | . . . . Garrison Access . | . . . . Total Hacks 6 | . 3 . 3 Successful 3 | . 2 . 1 Failed 3 | . 1 . 2 Catastrophic 2 | . . . 2 Database Lockouts . | . . . . Manual 3 | . 1 . 2 Terminals 6 | . 3 . 3 Fabricators . | . . . . Repair Stations . | . . . . Recycling Units . | . . . . Scanalyzers . | . . . . Garrison Access . | . . . . Terminal Hacks 3 | . 2 . 1 Branch Access Points 2 | . 1 . 1 Emergency Access Points 1 | . 1 . . Fabricator Hacks . | . . . . Repair Station Hacks . | . . . . Recycling Unit Hacks . | . . . . Scanalyzer . | . . . . Garrison Access Hacks . | . . . . Unauthorized Hacks . | . . . . Terminals . | . . . . Fabricators . | . . . . Repair Stations . | . . . . Recycling Units . | . . . . Scanalyzers . | . . . . Garrison Access . | . . . . Data Cores Recovered . | . . . . Used . | . . . . Hacking Detections 2 | . 1 . 1 Full Trace Events 1 | . . . 1 Feedback Events . | . . . . Feedback Blocked . | . . . . Robot Schematics Acquired . | . . . . Robots Built . | . . . . Authchips . | . . . . Time . | . . . . Total Robot Build Rating . | . . . . Part Schematics Acquired . | . . . . Parts Built . | . . . . Authchips . | . . . . Time . | . . . . Total Part Build Rating . | . . . . Parts Repaired . | . . . . Time . | . . . . Parts Recycled . | . . . . Recycled Matter . | . . . . Retrieved Matter . | . . . . Retrieved Components . | . . . . Parts Scanalyzed . | . . . . Part Schematics Acquired . | . . . . Parts Damaged . | . . . . Bothacking | -11 -10 -10 -9 ------------ Run | Yrd Mat Min Mat Used RIF Installer . | . . . . Robots Hacked . | . . . . Non-combat . | . . . . Combat . | . . . . Robot Hacks Applied . | . . . . Relay Couplers Released . | . . . . Fabnet Peak Effective % . | . . . . Robots Rewired . | . . . . Allies Hacked . | . . . . Hacks Repelled . | . . . . Allies | -11 -10 -10 -9 -------- Run | Yrd Mat Min Mat Total Allies 3 | . . 3 . Largest Group 3 | . . 3 . Highest-Rated Group 40 | . . 40 . Highest-Rated Ally 16 | . . 16 . Total Orders . | . . . . Ally Attacks 16 | . . 16 . Total Damage 98 | . . 98 . Kills 1 | . . 1 . Allies Corrupted . | . . . . Allies Melted . | . . . . Intel | -11 -10 -10 -9 ------- Run | Yrd Mat Min Mat Robot Analysis Total . | . . . . Derelict Logs Recovered 2 | . . 2 . Drone Launches . | . . . . Drone Recoveries . | . . . . Exploration | -11 -10 -10 -9 ------------- Run | Yrd Mat Min Mat Turns Passed 1470 | 292 122 920 136 Spaces Moved 1286 | 201 112 856 117 Core 3 | 3 . . . Treads . | . . . . Legs . | . . . . Wheels 1272 | 198 112 845 117 Hover 11 | . . 11 . Flight . | . . . . Fastest Speed 50 | 50 90 80 80 Average Speed 87 | 89 90 86 93 Slowest Speed 95 | 90 90 90 95 Overloaded Moves . | . . . . Propulsion Burnouts . | . . . . Robots Hopped . | . . . . Cave-ins Triggered . | . . . . Exploration Rate (%) 33 | 8 25 86 15 Regions Visited 3 Branch Regions 1 Pre-discovered Areas 1 | . . 1 . Known Exits Taken 1 | . 1 . . Unknown Exits Taken 2 | 1 . 1 . Scrap Searched 2 | . . 2 . Spaces Dug . | . . . . Terrain Destroyed 18 | . . 18 . Melee . | . . . . Projectile . | . . . . AOE 18 | . . 18 . Terrain Rammed . | . . . . Walls Destroyed . | . . . . Machines Disabled . | . . . . Actions | -11 -10 -10 -9 --------- Run | Yrd Mat Min Mat Total 1529 | 256 133 1008 132 Wait 136 | . 21 115 . Move 1283 | 200 111 855 117 Hop . | . . . . Pick Up 24 | 15 1 5 3 Fast Attach 1 | 1 . . . Attach 16 | 6 . 8 2 Detach 1 | . . 1 . Swap 7 | . . 4 3 Drop 3 | 2 . . 1 Fire 58 | 32 . 20 6 Melee . | . . . . Ram . | . . . . Kick . | . . . . Crush . | . . . . Escape Stasis . | . . . . Rewire . | . . . . Trap . | . . . . Miscellaneous . | . . . . Route ------- -11/Scrapyard -10/Materials (discovered 2 exits: *Min x2) -10/Mines (discovered 3 exits: *Mat x2 / [*Sub]) -9/Materials (discovered 3 exits: Min / Sto x2) History --------- Turn | Location | Event 21 | -11/Scrapyard | Discovered new exit (range 15) 293 | -11/Scrapyard | Entered Materials 313 | -10/Materials | Build established: Mutant 395 | -10/Materials | Identified exit to Mines 415 | -10/Materials | Entered Mines 453 | -10/Mines | Found a damaged Exp. Sensor Array with a note attached 594 | -10/Mines | Discovered new exit (range 10) 786 | -10/Mines | Discovered new exit (range 3) 954 | -10/Mines | Assembled infested the area 959 | -10/Mines | Assisted by a Guerilla fighting off Assembled 1005 | -10/Mines | Assisted by bots powering up and referring to "LRC-V3" 1007 | -10/Mines | Learned Materials garrison access intel 1017 | -10/Mines | Learned Materials emergency access door positions 1020 | -10/Mines | Learned location of Storage (-9) 1238 | -10/Mines | Found Prototype Device 1239 | -10/Mines | Identified Exp. Sensor Array 1252 | -10/Mines | Discovered new exit (range 6) 1335 | -10/Mines | Entered Materials 1335 | -9/Materials | Evolved 2 slots: Propulsion x2 1450 | -9/Materials | Identified exit to Mines 1450 | -9/Materials | Identified exit to Storage 1471 | -9/Materials | Self-destructed Last Messages --------------- Connecting with Terminal... Current location identified: Materials ALERT: Suspicious activity at Terminal M006. Dispatching Investigation squad. Acquired Hcp. Storage Unit. Dropped Sml. Storage Unit. Wheel destroyed. Y-45 Defender destroyed. Acquired Imp. Ion Engine. R-06 Scavenger destroyed. Acquired VTOL Module. Connecting with Terminal... >>Access(Branch) Found 3 branch access points: (48,49) Mines (57,71) Storage (70,28) Storage Map updated. R-06 Scavenger inserts Lgt. Armor Plating into recycling unit. Map ----- +----------------------------------------------------+ | ???????????????????????????????# ??????# #????? | | ???????????????????????????????# ####### #????? | | ???????????????????????????????# #?? # | | ???????????????????????????????# # # | | ???????????????????????????????+ """ + # | | ???????????????????????????????# "Y" # # | | ???????????????????????????????# #?? # | | ???????????????????????????????## #????? | | ????????????????????????????????# #????? | | ????????????????????????????????# #????? | | ????????????????????????????????# #????? | | ????????????????????????????????# """ #????? | | ????????????????????????????????# """ #????? | | ????????????????????????????????# """ #????? | | ????????????????????????????????+ #????? | | ????????????????????????????????# #????? | | ????????????????????????????????# """ #????? | | ????????????????????????????????#[! """ #????? | | ????????????????????????????????#[! """ ###??? | | ????????????????????????????????#! ""#??? | | ?????????????????????##########?# T"#??? | | ?????????????????????# ### """ ""#??? | | ?????????????????????# # """ ###??? | | ?????????????????????# # """ #????? | | ?????????????????????# # #????? | | ?????????????????????# @ + #????? | | ?????????????????????# # #????? | | ??????>??????????????# # #### #????? | | ?????????????????????# # #??# #????? | | ?????????????????????# ! # ##???+#????? | | ?????????????????????########## #??????????? | | ??????????????????????????????# #??????????? | | ??????????????????????????????# +??????????? | | ??????????????????????????????# #??????????? | | ??????????????????????????????# #??????????? | | ??????????????????????????????# #??????????? | | ??????????????????????????????### ##??????????? | | ????????????????????????????????? #???????????? | | ????????????????????????????????? #???????????? | | ????????????????????????????????? ????????????? | | ????????????????????????????????????????????????? | | ????????????????????????????????????????????????? | | ????????????????????????????????????????????????? | | ????????????????????????????????????????????????? | | ????????????????????????????????????????????????? | | ????????????????????????????????????????????????? | | ????????????????????????????????????????????????? | | ????????????????????????????????????????????????? | | ????????????????????????????????????????????????? | | ????????????????????????????????????????????????? | +----------------------------------------------------+ Best States ------------- Heat Dissipation 28 Energy Generation 12 Energy Capacity 265 Matter Stores 264 Matter Capacity 300 Sight Range 16 Robot Scan Range 20 Terrain Scan Density 10 Evasion (%) 49 Item Schematics ----------------- None Robot Schematics ------------------ None Fabricated ------------ Nothing Alien Tech Used ----------------- None Achievements -------------- None Challenges ------------ None Game ------ Seed ThunderMagneticCapacitor Manual? 0 Play Time 00:11:22 Cumulative 21.6 hours Start 2024.04.12 @ 21:05:34 End 2024.04.12 @ 21:15:22 Sessions 1 Manual Loads 0 Difficulty Rogue Special Mode None Game No. 61 Rogue 61 Adventurer 0 Explorer 0 Win Type - Total 0 Types 0/0/0/0/0/0/0/0/0 Lore% 19 Gallery% 28 Achievement% 22 Wizard Run 0 Options --------- Layout 1 ASCII 0 Keyboard 0 Movement Arrows Keybinds 0 Fullscreen 2 Font 24/Smallcaps Map View 50x35 Zoom Use 0% Tactical HUD 0 Map Filters NONE Filters NONE Steam 1 RUN: f07a6318-d4d5-4fd9-9f73-f182a0416def